bitfinex-derivatives/quotes_BTCF0:USTF0_20250119
["timestamp","ask_amount","ask_price","bid_price","bid_amount"]
[1737306311230,0.53038254,104920.0,104910.0,0.23161399]
[1737306311428,0.53038254,104920.0,104900.0,0.29692987]
[1737306311429,0.67342918,104920.0,104900.0,0.29692987]
[1737306311632,0.10018754,104910.0,104900.0,0.29991448]
[1737306313332,0.46098754,104910.0,104900.0,0.29991448]
[1737306313935,0.60403418,104910.0,104900.0,0.07128461]
[1737306314433,0.60403418,104910.0,104900.0,0.04211969]
[1737306314635,0.60403418,104910.0,104900.0,0.03838461]
[1737306314831,0.60403418,104910.0,104900.0,0.03838454]
[1737306315134,0.60403418,104910.0,104900.0,0.00298454]
[1737306317725,0.24323418,104910.0,104900.0,0.00298454]
[1737306318729,0.24323418,104910.0,104900.0,0.00298461]
[1737306319332,0.24323418,104910.0,104890.0,0.31016087]
[1737306319532,0.25265457,104910.0,104890.0,0.34418536]
[1737306320023,0.25265457,104910.0,104890.0,0.35910829]
[1737306320228,0.05246354,104900.0,104890.0,0.35910829]
[1737306320427,0.10019154,104900.0,104890.0,0.31137729]
[1737306320633,0.10019154,104900.0,104890.0,0.2803374]
[1737306320829,0.10019154,104900.0,104890.0,0.26541457]
[1737306321439,0.10019154,104900.0,104890.0,0.26242987]
[1737306321625,0.10019154,104900.0,104890.0,0.26541473]
[1737306321831,0.10019154,104900.0,104890.0,0.26242987]
[1737306322439,0.10019154,104900.0,104890.0,0.26541465]
[1737306323035,0.10019154,104900.0,104890.0,0.26236987]
[1737306323241,0.10019154,104900.0,104890.0,0.03374]
[1737306323540,0.10019154,104900.0,104890.0,0.03672484]
[1737306323727,0.10019154,104900.0,104890.0,0.03374]
[1737306324133,0.10019154,104900.0,104890.0,0.03672485]
[1737306324548,0.46099154,104900.0,104890.0,0.03374]
[1737306324837,0.46099154,104900.0,104890.0,0.00298481]
[1737306325044,0.46099154,104900.0,104880.0,0.63079698]
[1737306325045,0.047733,104890.0,104880.0,0.63079698]
[1737306325233,0.10019654,104890.0,104880.0,0.66482467]
[1737306325742,0.10019654,104890.0,104880.0,0.70362804]
[1737306325942,0.047733,104890.0,104880.0,0.70362804]
[1737306326444,0.047733,104890.0,104880.0,0.73712804]
[1737306327245,0.047733,104890.0,104880.0,0.73712806]
[1737306327943,0.047733,104890.0,104880.0,0.45137298]
[1737306328741,0.047733,104890.0,104880.0,0.45137259]
[1737306328941,0.047733,104890.0,104880.0,0.81217259]
[1737306329130,0.047733,104890.0,104880.0,0.45137259]
[1737306330147,0.05708749,104890.0,104880.0,0.81217259]
[1737306330546,0.05708749,104890.0,104880.0,0.45137259]
[1737306330742,0.05708749,104890.0,104880.0,0.45137222]
[1737306330948,0.05708749,104890.0,104880.0,0.48579879]
[1737306332049,0.05708749,104890.0,104880.0,0.84659879]
[1737306332548,0.05708749,104890.0,104880.0,0.48579879]
[1737306332741,0.05708749,104890.0,104880.0,0.45137222]
[1737306333137,0.00935449,104890.0,104880.0,0.48579879]
[1737306333449,0.32880321,104900.0,104880.0,0.48579879]
[1737306334438,0.33856271,104900.0,104880.0,0.48579879]
[1737306334643,0.69936271,104900.0,104880.0,0.45137222]
[1737306335040,0.047733,104890.0,104880.0,0.81217222]
[1737306335241,0.08215957,104890.0,104880.0,0.74357222]
[1737306335447,0.08215957,104890.0,104880.0,0.69583622]
[1737306335743,0.44295957,104890.0,104880.0,0.27049415]
[1737306335945,0.44295957,104890.0,104880.0,0.26750927]
[1737306336147,0.47738614,104890.0,104880.0,0.26743324]
[1737306336343,0.47738614,104890.0,104880.0,0.22862987]
[1737306337151,0.44295957,104890.0,104880.0,0.22862987]
[1737306338145,0.44295957,104890.0,104870.0,0.27636987]
[1737306338146,0.53827321,104890.0,104870.0,0.27636987]
[1737306338349,0.08216357,104880.0,104870.0,0.27636987]
[1737306338852,0.10021425,104880.0,104870.0,0.27636987]
[1737306339249,0.20551425,104880.0,104870.0,0.27636987]
[1737306340464,0.20551425,104880.0,104870.0,0.04774]
[1737306341255,0.047742,104870.0,104860.0,0.51438495]
[1737306341457,0.047742,104870.0,104850.0,0.33861982]
[1737306341458,0.047746,104860.0,104850.0,0.33861982]
[1737306341755,0.56512325,104860.0,104850.0,0.33861982]
[1737306342952,0.56512325,104860.0,104850.0,0.32010885]
[1737306344059,0.047754,104850.0,104830.0,0.54229993]
[1737306344257,0.05247725,104840.0,104830.0,0.14568829]
[1737306344452,0.46103125,104850.0,104830.0,0.19344429]
[1737306344652,0.46103125,104850.0,104830.0,0.1964306]
[1737306344859,0.46103125,104850.0,104830.0,0.18749703]
[1737306345259,0.46103125,104850.0,104830.0,0.54829703]
[1737306347770,0.46103125,104850.0,104830.0,0.18451072]
[1737306348564,0.46103125,104850.0,104830.0,0.54531061]
[1737306349769,0.46103125,104850.0,104830.0,0.59778786]
[1737306350862,0.46103125,104850.0,104830.0,0.54531061]
[1737306351263,0.047754,104850.0,104840.0,0.442256]
[1737306353163,0.047754,104850.0,104840.0,0.4452421]
[1737306353471,0.10023125,104850.0,104840.0,0.3974861]
[1737306354364,0.10023125,104850.0,104840.0,0.0337]
[1737306354776,0.10023125,104850.0,104840.0,0.03668616]
[1737306355380,0.10023125,104850.0,104840.0,0.39748616]
[1737306355987,0.047754,104850.0,104840.0,0.39748616]
[1737306356484,0.047754,104850.0,104840.0,0.44524216]
[1737306357088,0.48621697,104860.0,104840.0,0.49771941]
[1737306357288,0.48621697,104860.0,104840.0,0.39748616]
[1737306357588,0.48621697,104860.0,104850.0,0.047751]
[1737306358086,0.53869422,104860.0,104850.0,0.047751]
[1737306364590,0.65248113,104860.0,104850.0,0.047751]
[1737306364792,0.65248113,104860.0,104850.0,0.05073704]
[1737306365092,0.65248113,104860.0,104850.0,0.047751]
[1737306365285,0.65248113,104860.0,104850.0,0.05073705]
[1737306366085,0.56580388,104860.0,104850.0,0.05073704]
[1737306366295,0.61828113,104860.0,104850.0,0.05073704]
[1737306366589,0.53200388,104860.0,104850.0,0.05073704]
[1737306366790,0.11378691,104860.0,104850.0,0.50099175]
[1737306367094,0.11378691,104860.0,104850.0,0.56614391]
[1737306367296,0.14304664,104860.0,104850.0,0.60495838]
[1737306367885,0.24326989,104860.0,104850.0,0.14393013]
[1737306368197,0.24326989,104860.0,104850.0,0.11287797]
[1737306368493,0.24326989,104860.0,104850.0,0.0740635]
[1737306368684,0.10022325,104860.0,104850.0,0.0077635]
[1737306369193,0.10022325,104860.0,104850.0,0.00298604]
[1737306369493,0.047751,104850.0,104840.0,0.081454]
[1737306369795,0.047751,104850.0,104840.0,0.48107238]
[1737306369998,0.42237251,104860.0,104840.0,0.49600234]
[1737306370997,0.11400062,104850.0,104840.0,0.49600234]
[1737306371693,0.11400062,104850.0,104840.0,0.54847959]
[1737306372285,0.11400062,104850.0,104840.0,1.10968851]
[1737306373489,0.11400062,104850.0,104840.0,1.10968725]
[1737306374291,0.11400062,104850.0,104840.0,1.05721]
[1737306374794,0.31437576,104850.0,104840.0,0.66773322]
[1737306375898,0.31437576,104850.0,104840.0,0.66295573]
[1737306376285,0.14304664,104850.0,104840.0,0.66295573]
[1737306379096,0.14304664,104850.0,104840.0,0.71543298]
[1737306379498,0.14304664,104850.0,104840.0,0.71543312]
[1737306380196,0.17132912,104850.0,104840.0,0.71070887]
[1737306381293,0.11419096,104850.0,104840.0,1.05072201]
[1737306381497,0.11419096,104850.0,104840.0,1.05072196]
[1737306381699,0.11419096,104850.0,104840.0,1.0600953]
[1737306382002,0.11419096,104850.0,104840.0,1.06009443]
[1737306382306,0.11419096,104850.0,104840.0,1.11257168]
[1737306382696,0.11419096,104850.0,104840.0,1.06009443]
[1737306383501,0.11419096,104850.0,104840.0,1.11257243]
[1737306385397,0.11419096,104850.0,104840.0,1.07853283]
[1737306385605,0.11419096,104850.0,104840.0,1.11257195]
[1737306387896,0.11419096,104850.0,104840.0,1.0600947]
[1737306389406,0.11419096,104850.0,104840.0,1.0600945]
[1737306389910,0.30806295,104860.0,104850.0,0.047751]
[1737306390109,0.30806295,104860.0,104850.0,0.05073687]
[1737306391207,0.16532425,104860.0,104850.0,0.22257745]
[1737306393010,0.54255208,104860.0,104850.0,0.22257745]
[1737306393511,0.18175208,104860.0,104850.0,0.22257754]
[1737306393711,0.50809954,104860.0,104850.0,0.22257754]
[1737306394412,0.67942866,104860.0,104850.0,0.22257754]
[1737306394608,0.7138812,104860.0,104850.0,0.17482654]
[1737306395310,0.7138812,104860.0,104850.0,0.17184058]
[1737306395502,0.7138812,104860.0,104850.0,0.17482661]
[1737306397413,0.7138812,104860.0,104850.0,0.17482668]
[1737306397920,0.047751,104850.0,104840.0,0.33424815]
[1737306398113,0.50985608,104850.0,104840.0,0.28948038]
[1737306398413,0.47540354,104850.0,104840.0,0.00327223]
[1737306398721,0.53369608,104850.0,104840.0,0.00327223]
[1737306398921,0.51730932,104850.0,104840.0,0.00327223]
[1737306399325,0.51730932,104850.0,104840.0,0.000286]
[1737306399616,0.68863844,104850.0,104840.0,0.000286]
[1737306402219,0.65992404,104850.0,104840.0,0.000286]
[1737306402822,0.60740572,104850.0,104840.0,0.048042]
[1737306403026,0.65992404,104850.0,104840.0,0.048042]
[1737306404816,0.68863844,104850.0,104840.0,0.048042]
[1737306406420,0.69805444,104850.0,104840.0,0.048042]
[1737306409425,0.52672532,104850.0,104840.0,0.048042]
[1737306411619,0.52672532,104850.0,104840.0,0.000286]
[1737306412024,0.84021432,104850.0,104840.0,0.000286]
[1737306412822,0.47941432,104850.0,104840.0,0.000286]
[1737306413023,0.84021432,104850.0,104840.0,0.000286]
[1737306417125,0.047756,104840.0,104830.0,0.04670993]
[1737306417323,0.13587432,104840.0,104830.0,0.00298656]
[1737306417826,0.13587432,104840.0,104830.0,0.00298653]
[1737306418329,0.49667432,104840.0,104830.0,0.00298653]
[1737306418526,0.63916932,104840.0,104830.0,0.00298653]
[1737306418824,0.26031493,104840.0,104830.0,0.00298653]
[1737306419026,0.26031493,104840.0,104830.0,0.05074653]
[1737306419927,0.37433317,104840.0,104830.0,0.05074653]
[1737306420227,0.37433317,104840.0,104830.0,0.08521046]
[1737306420818,0.39817317,104840.0,104830.0,0.08521046]
[1737306421124,0.36370924,104840.0,104830.0,0.08521046]
[1737306421428,0.28415493,104840.0,104830.0,0.08521046]
[1737306422125,0.28415493,104840.0,104830.0,0.08998884]
[1737306422629,0.28415493,104840.0,104830.0,0.12268884]
[1737306422820,0.28415493,104840.0,104830.0,0.35165776]
[1737306423020,0.28415493,104840.0,104830.0,0.35165765]
[1737306423724,0.28415493,104840.0,104830.0,0.31719372]
[1737306425127,0.28415493,104840.0,104830.0,0.31719382]
[1737306425843,0.64495493,104840.0,104830.0,0.31719382]
[1737306426025,0.28415493,104840.0,104830.0,0.31719382]
[1737306427416,0.44265493,104840.0,104820.0,0.64700815]
[1737306427627,0.46419179,104830.0,104800.0,0.49827449]
[1737306427928,0.83829686,104810.0,104780.0,0.56892784]
[1737306428121,0.03446393,104790.0,104780.0,0.58385855]
[1737306428429,0.39526393,104790.0,104780.0,0.57321933]
[1737306428626,0.44304193,104790.0,104780.0,0.57321933]
[1737306428833,0.47750586,104790.0,104780.0,0.55828862]
[1737306429133,0.44304193,104790.0,104780.0,0.55828862]
[1737306429431,0.62020003,104790.0,104770.0,0.01493071]
[1737306429631,0.47751086,104780.0,104770.0,0.01493071]
[1737306429925,0.047787,104770.0,104760.0,0.45632071]
[1737306430127,0.44305093,104770.0,104760.0,0.01493071]
[1737306430427,0.44305093,104770.0,104750.0,0.048795]
[1737306430625,0.08225093,104770.0,104750.0,0.06474604]
[1737306430823,0.10037299,104770.0,104760.0,0.047792]
[1737306431129,0.047787,104770.0,104760.0,0.047792]
[1737306431439,0.10037299,104770.0,104760.0,0.047792]
[1737306431729,0.27136699,104770.0,104760.0,0.047792]
[1737306431919,0.27136699,104770.0,104750.0,0.39878341]
[1737306432322,0.41316748,104770.0,104750.0,0.39878341]
[1737306432525,0.77396848,104770.0,104760.0,0.047792]
[1737306432723,0.77396848,104770.0,104750.0,0.34197528]
[1737306432920,0.77396848,104770.0,104750.0,0.05080582]
[1737306433126,0.77396848,104770.0,104750.0,0.05080586]
[1737306433316,0.60297448,104770.0,104760.0,0.047792]
[1737306434432,0.24217448,104770.0,104760.0,0.047792]
[1737306434632,0.58395513,104770.0,104760.0,0.047792]
[1737306439827,0.22315513,104770.0,104760.0,0.047792]
[1737306440525,0.22315513,104770.0,104740.0,0.41832255]
[1737306440732,0.05258599,104760.0,104750.0,0.047792]
[1737306441132,0.05258599,104760.0,104750.0,0.08664354]
[1737306442636,0.05258599,104760.0,104750.0,0.047792]
[1737306444235,0.05258599,104760.0,104750.0,0.08664412]
[1737306444440,0.05258599,104760.0,104750.0,0.44744412]
[1737306444933,0.58395513,104770.0,104750.0,0.49523712]
[1737306445936,0.11327391,104770.0,104760.0,0.46117799]
[1737306446141,0.11327391,104770.0,104760.0,0.52907799]
[1737306446436,0.11327391,104770.0,104760.0,0.57641961]
[1737306447034,0.11327391,104770.0,104760.0,0.57641951]
[1737306447229,0.55518648,104780.0,104770.0,0.047787]
[1737306447230,0.53619782,104780.0,104770.0,0.047787]
[1737306447424,0.12281183,104780.0,104770.0,0.047787]
[1737306447630,0.11327391,104780.0,104770.0,0.047787]
[1737306448732,0.11327391,104780.0,104770.0,0.41157512]
[1737306450142,0.13712391,104780.0,104770.0,0.41157512]
[1737306450335,0.13712391,104780.0,104770.0,0.42125486]
[1737306451136,0.02385,104780.0,104770.0,0.42125486]
[1737306452032,0.194844,104780.0,104770.0,0.42125486]
[1737306452436,0.194844,104780.0,104770.0,0.37346786]
[1737306452636,0.194844,104780.0,104770.0,0.42125486]
[1737306452830,0.24742999,104780.0,104770.0,0.41157512]
[1737306453237,0.29521299,104780.0,104770.0,0.05077512]
[1737306453442,0.29521299,104780.0,104770.0,0.00298812]
[1737306453738,0.29521299,104780.0,104770.0,0.00298818]
[1737306453739,0.65601299,104780.0,104770.0,0.00298818]
[1737306454540,0.48501899,104780.0,104770.0,0.00298818]
[1737306455346,0.48501899,104780.0,104770.0,0.00298838]
[1737306458240,0.68485855,104780.0,104770.0,0.00298838]
[1737306461842,0.68485855,104780.0,104770.0,0.00298842]
[1737306462042,0.68485855,104780.0,104760.0,0.12690459]
[1737306462250,0.05258599,104770.0,104760.0,0.07911459]
[1737306462543,0.05258599,104770.0,104760.0,0.04779]
[1737306462747,0.41338599,104770.0,104750.0,0.29633883]
[1737306462949,0.61270502,104770.0,104760.0,0.047788]
[1737306465745,0.56011903,104770.0,104760.0,0.047788]
[1737306466344,0.56011903,104770.0,104760.0,0.082988]
[1737306466541,0.56981946,104770.0,104760.0,0.082988]
[1737306466745,0.56981946,104770.0,104760.0,0.13557399]
[1737306466746,0.20901946,104770.0,104760.0,0.13557399]
[1737306466944,0.20901946,104770.0,104760.0,0.082988]
[1737306467453,0.20901946,104770.0,104760.0,0.08776939]
[1737306467754,0.20901946,104770.0,104760.0,0.09972279]
[1737306468152,0.20901946,104770.0,104760.0,0.09972264]
[1737306468354,0.20901946,104770.0,104760.0,0.11466403]
[1737306469252,0.20901946,104770.0,104760.0,0.10988279]
[1737306469453,0.20901946,104770.0,104760.0,0.11466403]
[1737306470056,0.26160545,104770.0,104760.0,0.11466403]
[1737306471047,0.18062016,104770.0,104760.0,0.11466403]
[1737306471356,0.18062016,104770.0,104760.0,0.14936403]
[1737306473258,0.23320615,104770.0,104760.0,0.14936403]
[1737306473558,0.23320615,104770.0,104760.0,0.14936378]
[1737306473760,0.59400615,104770.0,104760.0,0.14936378]
[1737306473958,0.59400615,104770.0,104760.0,0.14039903]
[1737306474160,0.18062016,104770.0,104760.0,0.12545764]
[1737306475260,0.23320615,104770.0,104760.0,0.12545764]
[1737306475561,0.59400615,104770.0,104760.0,0.12545777]
[1737306476164,0.67019245,104770.0,104760.0,0.05555777]
[1737306478864,0.67019245,104770.0,104750.0,0.40415033]
[1737306479159,0.67019245,104770.0,104750.0,0.04752638]
[1737306479354,0.67019245,104770.0,104760.0,0.047788]
[1737306480846,0.65211418,104770.0,104760.0,0.047788]
[1737306486164,0.29131418,104770.0,104760.0,0.047788]
[1737306486360,0.09199515,104770.0,104760.0,0.047788]
[1737306487864,0.45279515,104770.0,104760.0,0.047788]
[1737306488258,0.09199515,104770.0,104760.0,0.047788]
[1737306488860,0.45279515,104770.0,104760.0,0.047788]
[1737306489072,0.05748743,104770.0,104760.0,0.05256952]
[1737306489261,0.09199515,104770.0,104760.0,0.05256952]
[1737306490161,0.09199515,104770.0,104760.0,0.05256939]
[1737306490966,0.09199515,104770.0,104760.0,0.05555777]
[1737306492263,0.04420815,104770.0,104760.0,0.05555777]
[1737306492970,0.04420815,104770.0,104760.0,0.05555774]
[1737306493269,0.24352718,104770.0,104760.0,0.05555774]
[1737306493753,0.60432718,104770.0,104760.0,0.05555772]
[1737306494664,0.23382675,104770.0,104760.0,0.06751076]
[1737306494863,0.19931903,104770.0,104760.0,0.10201862]
[1737306495068,0.19931903,104770.0,104760.0,0.53371861]
[1737306495366,0.19931903,104770.0,104760.0,0.51415202]
[1737306495966,0.23382675,104770.0,104760.0,0.51415202]
[1737306496570,0.46821305,104770.0,104760.0,0.51415202]
[1737306497574,0.23382675,104770.0,104760.0,0.15335202]
[1737306498166,0.59462675,104770.0,104760.0,0.14139885]
[1737306498670,0.23382675,104770.0,104760.0,0.12645772]
[1737306499067,0.23382675,104770.0,104760.0,0.13841097]
[1737306499866,0.23382675,104770.0,104760.0,0.15335252]
[1737306500879,0.19931903,104770.0,104760.0,0.15335252]
[1737306501685,0.19931903,104770.0,104760.0,0.13661788]
[1737306501971,0.04824074,104770.0,104760.0,0.18141766]
[1737306502368,0.40904074,104770.0,104760.0,0.18141766]
[1737306502571,0.40904074,104770.0,104760.0,0.16946433]
[1737306503078,0.40904074,104770.0,104760.0,0.16946434]
[1737306503467,0.3608,104770.0,104760.0,0.16946434]
[1737306503667,0.3608,104770.0,104760.0,0.12645772]
[1737306505078,0.3608,104770.0,104760.0,0.12645768]
[1737306507582,0.39530772,104770.0,104760.0,0.12645768]
[1737306507878,0.3608,104770.0,104760.0,0.12645768]
[1737306508675,0.75404551,104780.0,104760.0,0.12645768]
[1737306509276,0.75404551,104780.0,104760.0,0.13841099]
[1737306509586,0.95444728,104770.0,104760.0,0.12645768]
[1737306509887,0.95444728,104770.0,104750.0,0.35822331]
[1737306510075,0.95444728,104770.0,104760.0,0.047791]
[1737306510276,0.75404551,104780.0,104760.0,0.047791]
[1737306510475,0.75404551,104780.0,104760.0,0.05974427]
[1737306510476,0.3608,104770.0,104760.0,0.05974427]
[1737306510680,0.3608,104770.0,104760.0,0.047791]
[1737306511068,0.408587,104770.0,104760.0,0.047791]
[1737306511584,0.60790603,104770.0,104760.0,0.047791]
[1737306512493,0.64241375,104770.0,104750.0,0.05734075]
[1737306512676,0.64241375,104770.0,104750.0,0.06929446]
[1737306513286,0.64241375,104770.0,104750.0,0.08423661]
[1737306513587,0.29903903,104760.0,104750.0,0.08423661]
[1737306513981,0.29903903,104760.0,104750.0,0.11874433]
[1737306514484,0.06155274,104760.0,104750.0,0.47954433]
[1737306515079,0.54655035,104770.0,104760.0,0.047792]
[1737306515280,0.54655035,104770.0,104760.0,0.05974571]
[1737306515789,0.54655035,104770.0,104760.0,0.07468786]
[1737306516091,0.24710603,104770.0,104760.0,0.07468786]
[1737306517084,0.55157678,104770.0,104760.0,0.07468729]
[1737306517982,0.78917666,104770.0,104760.0,0.07468729]
[1737306518680,0.78917666,104770.0,104760.0,0.02695687]
[1737306518990,0.78917666,104770.0,104760.0,0.07468729]
[1737306519185,0.22779318,104770.0,104760.0,0.50450273]
[1737306519384,0.22779318,104770.0,104760.0,0.57469501]
[1737306519980,0.48912974,104770.0,104760.0,0.5794758]
[1737306520175,0.26133656,104770.0,104760.0,0.5794758]
[1737306520480,0.26133656,104770.0,104760.0,0.54496808]
[1737306520686,0.29584428,104770.0,104760.0,0.54496808]
[1737306520892,0.29584428,104770.0,104760.0,0.54490808]
[1737306521791,0.23429608,104770.0,104760.0,0.54490808]
[1737306521985,0.23429608,104770.0,104760.0,0.54789608]
[1737306522682,0.4372256,104770.0,104760.0,0.54789608]
[1737306522990,0.4372256,104770.0,104760.0,0.5478961]
[1737306523407,0.47173332,104770.0,104760.0,0.0823961]
[1737306523586,0.34360758,104770.0,104760.0,0.0823961]
[1737306524189,0.26131286,104770.0,104760.0,0.0823961]
[1737306524693,0.48910604,104770.0,104760.0,0.11690382]
[1737306524889,0.48910604,104770.0,104750.0,0.49951668]
[1737306525101,0.03450772,104760.0,104750.0,0.3993785]
[1737306525283,0.14270772,104760.0,104750.0,0.3993785]
[1737306525596,0.14270772,104760.0,104750.0,0.39160896]
[1737306527686,0.50350772,104760.0,104750.0,0.047797]
[1737306528490,0.70329608,104760.0,104750.0,0.047797]
[1737306529497,0.96559698,104760.0,104750.0,0.047797]
[1737306530392,0.96559698,104760.0,104740.0,0.4086]
[1737306530593,0.96559698,104760.0,104740.0,0.0478]
[1737306530594,0.39530772,104750.0,104740.0,0.0478]
[1737306531603,0.39530772,104750.0,104740.0,0.0717106]
[1737306531898,0.39530772,104750.0,104740.0,0.08113836]
[1737306532801,0.59509608,104750.0,104740.0,0.08113836]
[1737306533005,0.59509608,104750.0,104740.0,0.0717106]
[1737306534305,0.59509608,104750.0,104740.0,0.0478]
[1737306534903,0.60459571,104750.0,104740.0,0.0478]
[1737306536596,0.60459571,104750.0,104740.0,0.08230772]
[1737306536993,0.60459571,104750.0,104740.0,0.08529667]
[1737306537799,0.57008799,104750.0,104740.0,0.08529667]
[1737306538706,0.19978836,104750.0,104740.0,0.48060439]
[1737306538901,0.19978836,104750.0,104740.0,0.51946074]
[1737306539698,0.19978836,104750.0,104740.0,0.49554914]
[1737306540102,0.17076711,104750.0,104740.0,0.49555014]
[1737306540296,0.17076711,104750.0,104740.0,0.46104242]
[1737306541011,0.22958583,104750.0,104740.0,0.45805347]
[1737306541206,0.22958583,104750.0,104740.0,0.44781972]
[1737306541401,0.22958583,104750.0,104740.0,0.48481972]
[1737306542113,0.05881872,104750.0,104740.0,0.48481972]
[1737306543807,0.22952232,104750.0,104740.0,0.48481972]
[1737306546416,0.22952232,104750.0,104740.0,0.49677415]
[1737306549320,0.22952232,104750.0,104740.0,0.46226643]
[1737306549505,0.22952232,104750.0,104740.0,0.450312]
[1737306550413,0.05881872,104750.0,104740.0,0.450312]
[1737306550711,0.05881872,104750.0,104740.0,0.48481972]
[1737306551418,0.05881872,104750.0,104740.0,0.49677415]
[1737306551809,0.22960542,104750.0,104740.0,0.49677415]
[1737306552117,0.22960542,104750.0,104740.0,0.48481972]
[1737306552321,0.22960542,104750.0,104740.0,0.49677415]
[1737306552515,0.05881872,104750.0,104740.0,0.49677415]
[1737306553213,0.05881872,104750.0,104740.0,0.49976268]
[1737306553422,0.35669067,104760.0,104750.0,0.047792]
[1737306553616,0.35669067,104760.0,104750.0,0.09724268]
[1737306554121,0.35669067,104760.0,104750.0,0.11218743]
[1737306554420,0.0735,104760.0,104750.0,0.11218743]
[1737306556926,0.0735,104760.0,104750.0,0.1121868]
[1737306557124,0.19030244,104760.0,104750.0,0.02988708]
[1737306557327,0.55229472,104760.0,104750.0,0.01793321]
[1737306557527,0.75208308,104760.0,104750.0,0.01793321]
[1737306557919,0.75208308,104760.0,104750.0,0.00298846]
[1737306558213,0.71757536,104760.0,104750.0,0.05078046]
[1737306558419,0.71757536,104760.0,104750.0,0.08528818]
[1737306558727,0.75208308,104760.0,104750.0,0.05078046]
[1737306559421,0.75208308,104760.0,104750.0,0.00298846]
[1737306560938,0.75208308,104760.0,104750.0,0.00777035]
[1737306561524,0.39128308,104760.0,104750.0,0.00777035]
[1737306561823,0.55229472,104760.0,104750.0,0.00777035]
[1737306563223,0.55229472,104760.0,104750.0,0.05556235]
[1737306564023,0.55229472,104760.0,104750.0,0.05078046]
[1737306565032,0.19149472,104760.0,104750.0,0.05078046]
[1737306565530,0.97987626,104760.0,104750.0,0.05078046]
[1737306565829,0.97987626,104760.0,104740.0,0.4528796]
[1737306566028,0.97987626,104760.0,104750.0,0.047792]
[1737306569724,0.55229472,104760.0,104740.0,0.42809499]
[1737306570134,0.55229472,104760.0,104740.0,0.46694807]
[1737306570334,0.55229472,104760.0,104740.0,0.0733608]
[1737306570637,0.55229472,104760.0,104750.0,0.047792]
[1737306571234,0.19149472,104760.0,104750.0,0.047792]
[1737306571437,0.55229472,104760.0,104750.0,0.047792]
[1737306571637,0.78029661,104760.0,104750.0,0.047792]
[1737306572438,0.78029661,104760.0,104750.0,0.08229972]
[1737306572734,0.74578889,104760.0,104750.0,0.08229972]
[1737306573037,0.74578889,104760.0,104750.0,0.08708157]
[1737306574742,0.74578889,104760.0,104750.0,0.05257385]
[1737306575035,0.74578889,104760.0,104750.0,0.08708157]
[1737306576334,0.30150189,104760.0,104750.0,0.08708139]
[1737306576537,0.30150189,104760.0,104750.0,0.09903559]
[1737306576936,0.27285774,104760.0,104750.0,0.11397824]
[1737306577840,0.27285774,104760.0,104750.0,0.11696674]
[1737306578033,0.29671774,104760.0,104750.0,0.11696674]
[1737306578229,0.29671774,104760.0,104750.0,0.10202404]
[1737306578434,0.29671774,104760.0,104750.0,0.11696653]
[1737306578930,0.22321774,104760.0,104750.0,0.51227425]
[1737306579123,0.22800189,104770.0,104750.0,0.51227425]
[1737306579324,0.22800189,104770.0,104760.0,0.64151016]
[1737306579528,0.54242167,104780.0,104770.0,0.047783]
[1737306579728,0.54242167,104780.0,104770.0,0.46281488]
[1737306579924,0.54242167,104780.0,104770.0,0.4973226]
[1737306580128,0.17087788,104780.0,104770.0,0.4973226]
[1737306580333,0.4913,104810.0,104800.0,0.047769]
[1737306580534,0.4486,104810.0,104800.0,0.09004684]
[1737306580830,0.0878,104810.0,104800.0,0.10806994]
[1737306581136,0.00961318,104810.0,104800.0,0.12001431]
[1737306581341,0.14226928,104810.0,104800.0,0.48081431]
[1737306581742,0.538956,104830.0,104810.0,0.047764]
[1737306581938,0.538956,104830.0,104810.0,0.12000931]
[1737306581939,0.59148682,104830.0,104810.0,0.12000931]
[1737306582938,0.3608,104820.0,104810.0,0.12000931]
[1737306583843,0.60488651,104830.0,104820.0,0.04776]
[1737306584037,0.60488651,104830.0,104820.0,0.10327787]
[1737306584941,0.4912,104830.0,104820.0,0.10805646]
[1737306585143,0.4912,104830.0,104820.0,0.10327787]
[1737306586046,0.63287683,104830.0,104820.0,0.10327787]
[1737306586243,0.27207683,104830.0,104820.0,0.10327787]
[1737306586543,0.63287683,104830.0,104820.0,0.10327787]
[1737306587344,0.4912,104830.0,104820.0,0.10327787]
[1737306588946,0.4912,104830.0,104820.0,0.1032775]
[1737306590348,0.4912,104830.0,104820.0,0.10029082]
[1737306592243,0.4485,104830.0,104820.0,0.10029082]
[1737306593950,0.0877,104830.0,104820.0,0.10029082]
[1737306594250,0.4485,104830.0,104820.0,0.10029082]
[1737306595540,0.0877,104830.0,104820.0,0.10029082]
[1737306595741,0.4485,104830.0,104820.0,0.10029082]
[1737306599451,0.4485,104830.0,104820.0,0.10327741]
[1737306599644,0.4485,104830.0,104820.0,0.10029082]
[1737306599840,0.4485,104830.0,104820.0,0.10327742]
[1737306600348,0.4485,104830.0,104820.0,0.1032774]
[1737306601555,0.496255,104830.0,104820.0,0.1032774]
[1737306602050,0.60933068,104830.0,104820.0,0.1032774]
[1737306602551,0.65353068,104830.0,104820.0,0.00298658]
[1737306603148,0.65353068,104830.0,104820.0,0.0555174]
[1737306603750,0.65353068,104830.0,104820.0,0.05551741]
[1737306604454,0.67406068,104830.0,104820.0,0.00298659]
[1737306605353,0.67406068,104830.0,104810.0,0.47084495]
[1737306605555,0.67406068,104830.0,104810.0,0.47383154]
[1737306606259,0.11307568,104820.0,104810.0,0.48577793]
[1737306607455,0.21610315,104820.0,104810.0,0.48577793]
[1737306607649,0.21610315,104820.0,104810.0,0.47084495]
[1737306607855,0.57690315,104820.0,104810.0,0.11522598]
[1737306608257,0.57690315,104820.0,104810.0,0.12000459]
[1737306608552,0.40725207,104820.0,104810.0,0.12000459]
[1737306609661,0.3608,104820.0,104810.0,0.12000459]
[1737306610852,0.51323,104830.0,104820.0,0.04776]
[1737306611052,0.46903,104830.0,104820.0,0.17253324]
[1737306611354,0.46903,104830.0,104820.0,0.10029082]
[1737306611663,0.46903,104830.0,104820.0,0.15282164]
[1737306612244,0.69507384,104830.0,104820.0,0.15282164]
[1737306612458,0.69507384,104830.0,104820.0,0.10029082]
[1737306612756,0.69507384,104830.0,104820.0,0.17253168]
[1737306612948,0.69507384,104830.0,104820.0,0.12018]
[1737306613647,0.66871514,104830.0,104820.0,0.12018]
[1737306613847,0.66871514,104830.0,104820.0,0.12000086]
[1737306614055,0.66871514,104830.0,104820.0,0.12000107]
[1737306614956,0.47905763,104830.0,104820.0,0.29138665]
[1737306615656,0.27937249,104830.0,104820.0,0.29138665]
[1737306616154,0.27937249,104830.0,104820.0,0.29138648]
[1737306617457,0.64017249,104830.0,104820.0,0.29138648]
[1737306619262,0.64017249,104830.0,104820.0,0.1200009]
[1737306619868,0.68427249,104830.0,104820.0,0.1200009]
[1737306620162,0.68427249,104830.0,104820.0,0.01971008]
[1737306620363,0.78455831,104830.0,104820.0,0.01971008]
[1737306620564,0.78455831,104830.0,104820.0,0.00776447]
[1737306621061,0.73202749,104830.0,104820.0,0.00776447]
[1737306622064,0.73202749,104830.0,104820.0,0.17915005]